[Event "Titled Tuesday Blitz March 22 Early 2022"]
[White "Ljukin, Sergei"]
[Black "Atakhan, Abtin"]
[WhiteFideId "14102200"]
[BlackFideId "22502203"]
[WhiteElo "2312"]
[BlackElo "2119"]
[Result "1-0"]
[Round "08"]
[TimeControl "180+1"]
[Date "2022.03.22"]
[WhiteClock "0:00:02"]
[BlackClock "0:00:03"]

1. e4 {[%clk 0:02:54]}  c5 {[%clk 0:03:00]} 2. Nf3 {[%clk 0:02:53]}  Nc6 {[%clk 0:03:00]} 3. d4 {[%clk 0:02:54]}  cxd4 {[%clk 0:03:00]} 4. Nxd4 {[%clk 0:02:55]}  g6 {[%clk 0:03:01]} 5. c4 {[%clk 0:02:53]}  Nf6 {[%clk 0:03:01]} 6. Nc3 {[%clk 0:02:52]}  d6 {[%clk 0:03:02]} 7. Be2 {[%clk 0:02:52]}  Nxd4 {[%clk 0:03:02]} 8. Qxd4 {[%clk 0:02:52]}  Bg7 {[%clk 0:03:03]} 9. Be3 {[%clk 0:02:53]}  O-O {[%clk 0:03:03]} 10. Qd2 {[%clk 0:02:52]}  a5 {[%clk 0:03:03]} 11. O-O {[%clk 0:02:51]}  a4 {[%clk 0:03:04]} 12. Rab1 {[%clk 0:02:50]}  Qa5 {[%clk 0:03:03]} 13. f3 {[%clk 0:02:49]}  Be6 {[%clk 0:03:03]} 14. Rfd1 {[%clk 0:02:30]}  Rfc8 {[%clk 0:03:03]} 15. Nd5 {[%clk 0:02:29]}  Qxd2 {[%clk 0:03:03]} 16. Rxd2 {[%clk 0:02:24]}  Bxd5 {[%clk 0:03:02]} 17. cxd5 {[%clk 0:02:24]}  Nd7 {[%clk 0:03:01]} 18. Bd1 {[%clk 0:02:04]}  Ne5 {[%clk 0:02:39]} 19. Rc2 {[%clk 0:01:57]}  Rxc2 {[%clk 0:02:36]} 20. Bxc2 {[%clk 0:01:57]}  Nc4 {[%clk 0:02:37]} 21. Bc1 {[%clk 0:01:57]}  Bd4+ {[%clk 0:02:33]} 22. Kf1 {[%clk 0:01:57]}  Rc8 {[%clk 0:02:23]} 23. Bxa4 {[%clk 0:01:51]}  Ne3+ {[%clk 0:01:45]} 24. Bxe3 {[%clk 0:01:44]}  Bxe3 {[%clk 0:01:45]} 25. Ke2 {[%clk 0:01:43]}  Bd4 {[%clk 0:01:45]} 26. Kd3 {[%clk 0:01:43]}  Be5 {[%clk 0:01:44]} 27. g3 {[%clk 0:01:43]}  g5 {[%clk 0:01:45]} 28. Bb5 {[%clk 0:01:03]}  Rc5 {[%clk 0:01:42]} 29. a4 {[%clk 0:00:57]}  h5 {[%clk 0:01:36]} 30. Bc4 {[%clk 0:00:43]}  Ra5 {[%clk 0:01:27]} 31. Bb5 {[%clk 0:00:37]}  h4 {[%clk 0:01:24]} 32. gxh4 {[%clk 0:00:36]}  gxh4 {[%clk 0:01:24]} 33. h3 {[%clk 0:00:32]}  Ra8 {[%clk 0:01:21]} 34. Rc1 {[%clk 0:00:24]}  Bxb2 {[%clk 0:00:48]} 35. Rc7 {[%clk 0:00:23]}  Rb8 {[%clk 0:00:42]} 36. Rxe7 {[%clk 0:00:22]}  Kg7 {[%clk 0:00:39]} 37. Rd7 {[%clk 0:00:19]}  Be5 {[%clk 0:00:26]} 38. Ke3 {[%clk 0:00:19]}  Rc8 {[%clk 0:00:20]} 39. f4 {[%clk 0:00:15]}  Rc3+ {[%clk 0:00:11]} 40. Bd3 {[%clk 0:00:15]}  Bxf4+ {[%clk 0:00:08]} 41. Kxf4 {[%clk 0:00:16]}  Rxd3 {[%clk 0:00:08]} 42. Rxd6 {[%clk 0:00:15]}  Rxh3 {[%clk 0:00:08]} 43. Rb6 {[%clk 0:00:15]}  Ra3 {[%clk 0:00:07]} 44. d6 {[%clk 0:00:13]}  h3 {[%clk 0:00:06]} 45. Rxb7 {[%clk 0:00:11]}  Rd3 {[%clk 0:00:04]} 46. e5 {[%clk 0:00:07]}  Rd4+ {[%clk 0:00:02]} 47. Kf5 {[%clk 0:00:05]}  Rxa4 {[%clk 0:00:03]} 48. e6 {[%clk 0:00:04]}  h2 {[%clk 0:00:03]} 49. Rxf7+ {[%clk 0:00:01]}  Kg8 {[%clk 0:00:04]} 50. d7 {[%clk 0:00:01]}  Rd4 {[%clk 0:00:03]} 51. e7 {[%clk 0:00:01]}  Rd5+ {[%clk 0:00:02]} 52. Ke6 {[%clk 0:00:01]}  Rd6+ {[%clk 0:00:02]} 53. Kxd6 {[%clk 0:00:02]}  Kxf7 {[%clk 0:00:03]} 54. e8=Q+ {[%clk 0:00:02]} 1-0


[Site "https://www.chess.com"]

[Event "Titled Tuesday Blitz March 22 Early 2022"]
[White "Mangialardo, Tiago Carvalho"]
[Black "Lakshmi C"]
[WhiteFideId "2130718"]
[BlackFideId "25035347"]
[WhiteElo "2084"]
[BlackElo "1775"]
[Result "0-1"]
[Round "08"]
[TimeControl "180+1"]
[Date "2022.03.22"]
[WhiteClock "0:00:50"]
[BlackClock "0:01:33"]

1. e4 {[%clk 0:03:00]}  g6 {[%clk 0:02:46]} 2. d4 {[%clk 0:02:59]}  Bg7 {[%clk 0:02:46]} 3. Nc3 {[%clk 0:02:59]}  c5 {[%clk 0:02:44]} 4. Nf3 {[%clk 0:02:59]}  Nc6 {[%clk 0:02:42]} 5. Be3 {[%clk 0:02:57]}  cxd4 {[%clk 0:02:38]} 6. Nxd4 {[%clk 0:02:58]}  d6 {[%clk 0:02:36]} 7. Be2 {[%clk 0:02:54]}  Nf6 {[%clk 0:02:35]} 8. O-O {[%clk 0:02:54]}  Bd7 {[%clk 0:02:34]} 9. Rb1 {[%clk 0:02:47]}  Rc8 {[%clk 0:02:33]} 10. Bf3 {[%clk 0:02:29]}  Ne5 {[%clk 0:02:22]} 11. Qe2 {[%clk 0:01:56]}  a6 {[%clk 0:02:04]} 12. Nd5 {[%clk 0:01:43]}  Nxf3+ {[%clk 0:01:59]} 13. Nxf3 {[%clk 0:01:31]}  Nxd5 {[%clk 0:01:55]} 14. exd5 {[%clk 0:01:32]}  Bb5 {[%clk 0:01:55]} 15. Qd2 {[%clk 0:01:12]}  Bxf1 {[%clk 0:01:54]} 16. Kxf1 {[%clk 0:01:12]}  Qc7 {[%clk 0:01:45]} 17. c3 {[%clk 0:01:10]}  Qc4+ {[%clk 0:01:45]} 18. Kg1 {[%clk 0:01:10]}  O-O {[%clk 0:01:44]} 19. Ra1 {[%clk 0:01:02]}  b5 {[%clk 0:01:43]} 20. Nd4 {[%clk 0:01:01]}  Qxd5 {[%clk 0:01:41]} 21. h3 {[%clk 0:00:52]}  e5 {[%clk 0:01:38]} 22. Nf3 {[%clk 0:00:51]}  Qxd2 {[%clk 0:01:37]} 23. Nxd2 {[%clk 0:00:52]}  d5 {[%clk 0:01:37]} 24. a4 {[%clk 0:00:51]}  d4 {[%clk 0:01:36]} 25. cxd4 {[%clk 0:00:50]}  exd4 {[%clk 0:01:36]} 26. Bf4 {[%clk 0:00:51]}  Rc2 {[%clk 0:01:33]} 27. axb5 {[%clk 0:00:50]}  axb5 {[%clk 0:01:33]} 0-1


[Site "https://www.chess.com"]

[Event "Titled Tuesday Blitz March 22 Early 2022"]
[White "Manolache, Marius"]
[Black "Suarez Uriel, Adrian"]
[WhiteFideId "1201530"]
[BlackFideId "22230874"]
[WhiteElo "2389"]
[BlackElo "2316"]
[Result "1-0"]
[Round "08"]
[TimeControl "180+1"]
[Date "2022.03.22"]
[WhiteClock "0:02:39"]
[BlackClock "0:02:45"]

1. d4 {[%clk 0:03:00]}  Nf6 {[%clk 0:02:59]} 2. c4 {[%clk 0:02:59]}  g6 {[%clk 0:02:59]} 3. Nc3 {[%clk 0:02:59]}  d5 {[%clk 0:03:00]} 4. cxd5 {[%clk 0:02:59]}  Nxd5 {[%clk 0:03:01]} 5. Bd2 {[%clk 0:03:00]}  c5 {[%clk 0:02:59]} 6. Qc1 {[%clk 0:02:59]}  cxd4 {[%clk 0:02:58]} 7. Nxd5 {[%clk 0:02:58]}  Nc6 {[%clk 0:02:56]} 8. Nb4 {[%clk 0:02:55]}  Ne5 {[%clk 0:02:52]} 9. Nd3 {[%clk 0:02:54]}  Nc6 {[%clk 0:02:52]} 10. g3 {[%clk 0:02:51]}  Bg7 {[%clk 0:02:52]} 11. Bg2 {[%clk 0:02:51]}  O-O {[%clk 0:02:53]} 12. f4 {[%clk 0:02:48]}  Bf5 {[%clk 0:02:47]} 13. Nf3 {[%clk 0:02:47]}  Rc8 {[%clk 0:02:47]} 14. Qd1 {[%clk 0:02:46]}  Bxd3 {[%clk 0:02:46]} 15. exd3 {[%clk 0:02:46]}  e5 {[%clk 0:02:47]} 16. O-O {[%clk 0:02:43]}  exf4 {[%clk 0:02:44]} 17. gxf4 {[%clk 0:02:41]}  Nb4 {[%clk 0:02:45]} 18. Bxb4 {[%clk 0:02:39]} 1-0


[Site "https://www.chess.com"]

[Event "Titled Tuesday Blitz March 22 Early 2022"]
[White "Marcziter, Dmitrii"]
[Black "Jaskolka, Tomasz"]
[WhiteFideId "13900765"]
[BlackFideId "1170791"]
[WhiteElo "2155"]
[BlackElo "2073"]
[Result "0-1"]
[Round "08"]
[TimeControl "180+1"]
[Date "2022.03.22"]
[WhiteClock "0:01:03"]
[BlackClock "0:00:39"]

1. e4 {[%clk 0:03:00]}  c5 {[%clk 0:02:59]} 2. Nc3 {[%clk 0:02:59]}  e6 {[%clk 0:02:59]} 3. g3 {[%clk 0:02:59]}  Nc6 {[%clk 0:02:59]} 4. Bg2 {[%clk 0:02:59]}  b6 {[%clk 0:02:56]} 5. d3 {[%clk 0:02:59]}  Bb7 {[%clk 0:02:56]} 6. f4 {[%clk 0:02:59]}  Nge7 {[%clk 0:02:54]} 7. e5 {[%clk 0:02:58]}  d5 {[%clk 0:02:52]} 8. exd6 {[%clk 0:02:57]}  Qxd6 {[%clk 0:02:52]} 9. Nf3 {[%clk 0:02:57]}  Nd5 {[%clk 0:02:51]} 10. Ne4 {[%clk 0:02:55]}  Qc7 {[%clk 0:02:51]} 11. O-O {[%clk 0:02:53]}  Be7 {[%clk 0:02:51]} 12. a3 {[%clk 0:02:52]}  O-O {[%clk 0:02:49]} 13. c4 {[%clk 0:02:52]}  Nf6 {[%clk 0:02:48]} 14. h3 {[%clk 0:02:46]}  Rad8 {[%clk 0:02:46]} 15. Qe2 {[%clk 0:02:46]}  Nxe4 {[%clk 0:02:38]} 16. dxe4 {[%clk 0:02:43]}  e5 {[%clk 0:02:34]} 17. fxe5 {[%clk 0:02:38]}  Nxe5 {[%clk 0:02:33]} 18. Bf4 {[%clk 0:02:38]}  Nxf3+ {[%clk 0:02:33]} 19. Qxf3 {[%clk 0:02:34]}  Qd7 {[%clk 0:02:29]} 20. Rad1 {[%clk 0:02:31]}  Qe6 {[%clk 0:02:28]} 21. Qe2 {[%clk 0:02:25]}  h6 {[%clk 0:01:40]} 22. Bc7 {[%clk 0:02:20]}  Rxd1 {[%clk 0:01:31]} 23. Rxd1 {[%clk 0:02:19]}  Bf6 {[%clk 0:01:30]} 24. b3 {[%clk 0:02:05]}  Bd4+ {[%clk 0:01:28]} 25. Kh2 {[%clk 0:02:04]}  Re8 {[%clk 0:01:27]} 26. Re1 {[%clk 0:02:02]}  Be5 {[%clk 0:01:10]} 27. Bxe5 {[%clk 0:02:00]}  Qxe5 {[%clk 0:01:10]} 28. Qd3 {[%clk 0:01:54]}  f5 {[%clk 0:00:57]} 29. exf5 {[%clk 0:01:32]}  Qxe1 {[%clk 0:00:57]} 30. Bxb7 {[%clk 0:01:31]}  Qe2+ {[%clk 0:00:48]} 31. Qxe2 {[%clk 0:01:31]}  Rxe2+ {[%clk 0:00:49]} 32. Kg1 {[%clk 0:01:32]}  Rb2 {[%clk 0:00:47]} 33. a4 {[%clk 0:01:24]}  Rxb3 {[%clk 0:00:45]} 34. Kf2 {[%clk 0:01:23]}  Kf7 {[%clk 0:00:43]} 35. Bc6 {[%clk 0:01:17]}  Rc3 {[%clk 0:00:40]} 36. h4 {[%clk 0:01:15]}  Kf6 {[%clk 0:00:38]} 37. g4 {[%clk 0:01:14]}  Rh3 {[%clk 0:00:38]} 38. h5 {[%clk 0:01:13]}  Kg5 {[%clk 0:00:37]} 39. Bg2 {[%clk 0:01:10]}  Rd3 {[%clk 0:00:37]} 40. Bf3 {[%clk 0:01:08]}  Rd4 {[%clk 0:00:36]} 41. Be2 {[%clk 0:01:08]}  Rxg4 {[%clk 0:00:35]} 42. Bxg4 {[%clk 0:01:06]}  Kxg4 {[%clk 0:00:36]} 43. f6 {[%clk 0:01:02]}  gxf6 {[%clk 0:00:35]} 44. Ke3 {[%clk 0:01:02]}  f5 {[%clk 0:00:35]} 45. Kf2 {[%clk 0:01:02]}  f4 {[%clk 0:00:35]} 46. Ke2 {[%clk 0:01:02]}  f3+ {[%clk 0:00:36]} 47. Kf2 {[%clk 0:01:02]}  Kf4 {[%clk 0:00:36]} 48. Kf1 {[%clk 0:01:03]}  Ke3 {[%clk 0:00:37]} 49. Ke1 {[%clk 0:01:03]}  a5 {[%clk 0:00:37]} 50. Kf1 {[%clk 0:01:03]}  f2 {[%clk 0:00:38]} 51. Kg2 {[%clk 0:01:03]}  Ke2 {[%clk 0:00:39]} 0-1


[Site "https://www.chess.com"]

[Event "Titled Tuesday Blitz March 22 Early 2022"]
[White "Melikhov, Evgeny V."]
[Black "Fathy, Elameir"]
[WhiteFideId "4122046"]
[BlackFideId "10600396"]
[WhiteElo "1945"]
[BlackElo "2311"]
[Result "0-1"]
[Round "08"]
[TimeControl "180+1"]
[Date "2022.03.22"]
[WhiteClock "0:01:14"]
[BlackClock "0:01:58"]

1. d4 {[%clk 0:02:41]}  d5 {[%clk 0:02:54]} 2. c4 {[%clk 0:02:40]}  c6 {[%clk 0:02:52]} 3. Nc3 {[%clk 0:02:39]}  Nf6 {[%clk 0:02:52]} 4. e3 {[%clk 0:02:39]}  e6 {[%clk 0:02:51]} 5. Nf3 {[%clk 0:02:39]}  Nbd7 {[%clk 0:02:50]} 6. Bd3 {[%clk 0:02:39]}  dxc4 {[%clk 0:02:51]} 7. Bxc4 {[%clk 0:02:39]}  b5 {[%clk 0:02:51]} 8. Bd3 {[%clk 0:02:40]}  Bd6 {[%clk 0:02:52]} 9. O-O {[%clk 0:02:39]}  O-O {[%clk 0:02:52]} 10. e4 {[%clk 0:02:39]}  e5 {[%clk 0:02:52]} 11. Bg5 {[%clk 0:02:38]}  Bb7 {[%clk 0:02:47]} 12. d5 {[%clk 0:02:37]}  b4 {[%clk 0:02:40]} 13. dxc6 {[%clk 0:02:36]}  Bxc6 {[%clk 0:02:40]} 14. Nd5 {[%clk 0:02:35]}  Bxd5 {[%clk 0:02:29]} 15. exd5 {[%clk 0:02:35]}  h6 {[%clk 0:02:30]} 16. Bxf6 {[%clk 0:02:32]}  Nxf6 {[%clk 0:02:26]} 17. Re1 {[%clk 0:02:24]}  Re8 {[%clk 0:02:26]} 18. Bc4 {[%clk 0:02:12]}  Qb6 {[%clk 0:02:20]} 19. Qe2 {[%clk 0:02:05]}  e4 {[%clk 0:02:16]} 20. Nd2 {[%clk 0:01:59]}  e3 {[%clk 0:02:14]} 21. fxe3 {[%clk 0:01:55]}  Rxe3 {[%clk 0:02:12]} 22. Qxe3 {[%clk 0:01:40]}  Bc5 {[%clk 0:02:11]} 23. Nf1 {[%clk 0:01:40]}  Bxe3+ {[%clk 0:02:07]} 24. Nxe3 {[%clk 0:01:36]}  Re8 {[%clk 0:02:07]} 25. Kf2 {[%clk 0:01:20]}  Rxe3 {[%clk 0:02:06]} 26. Rxe3 {[%clk 0:01:18]}  Ng4+ {[%clk 0:02:07]} 27. Kf3 {[%clk 0:01:18]}  Nxe3 {[%clk 0:02:06]} 28. Bb3 {[%clk 0:01:16]}  Nf5 {[%clk 0:02:04]} 29. Rd1 {[%clk 0:01:14]}  Qe3+ {[%clk 0:02:03]} 30. Kg4 {[%clk 0:01:14]}  Qe4+ {[%clk 0:01:58]} 0-1


[Site "https://www.chess.com"]

[Event "Titled Tuesday Blitz March 22 Early 2022"]
[White "Mikhalsky, Vladimir"]
[Black "Voit, Daria"]
[WhiteFideId "14144352"]
[BlackFideId "4182146"]
[WhiteElo "2301"]
[BlackElo "2323"]
[Result "1-0"]
[Round "08"]
[TimeControl "180+1"]
[Date "2022.03.22"]
[WhiteClock "0:00:38"]
[BlackClock "0:01:01"]

1. c4 {[%clk 0:02:59]}  Nf6 {[%clk 0:02:57]} 2. Nc3 {[%clk 0:02:58]}  c5 {[%clk 0:02:56]} 3. Nf3 {[%clk 0:02:57]}  d5 {[%clk 0:02:54]} 4. cxd5 {[%clk 0:02:57]}  Nxd5 {[%clk 0:02:54]} 5. e4 {[%clk 0:02:57]}  Nb4 {[%clk 0:02:54]} 6. Bc4 {[%clk 0:02:56]}  Nd3+ {[%clk 0:02:52]} 7. Ke2 {[%clk 0:02:56]}  Nf4+ {[%clk 0:02:52]} 8. Kf1 {[%clk 0:02:56]}  Nc6 {[%clk 0:02:50]} 9. d4 {[%clk 0:02:51]}  cxd4 {[%clk 0:02:44]} 10. Nxd4 {[%clk 0:02:08]}  Qxd4 {[%clk 0:02:14]} 11. Qxd4 {[%clk 0:02:07]}  Nxd4 {[%clk 0:02:15]} 12. Bxf4 {[%clk 0:02:07]}  e6 {[%clk 0:02:03]} 13. Rd1 {[%clk 0:02:03]}  Bc5 {[%clk 0:01:56]} 14. Na4 {[%clk 0:01:59]}  b6 {[%clk 0:01:52]} 15. b4 {[%clk 0:01:51]}  Bxb4 {[%clk 0:01:53]} 16. Rxd4 {[%clk 0:01:50]}  Bd7 {[%clk 0:01:53]} 17. Bb3 {[%clk 0:01:33]}  Bb5+ {[%clk 0:01:51]} 18. Kg1 {[%clk 0:01:34]}  Be7 {[%clk 0:01:51]} 19. Nc3 {[%clk 0:01:30]}  Bc6 {[%clk 0:01:47]} 20. Bd6 {[%clk 0:01:26]}  Rd8 {[%clk 0:01:40]} 21. e5 {[%clk 0:01:24]}  f6 {[%clk 0:01:39]} 22. Bxe6 {[%clk 0:01:09]}  fxe5 {[%clk 0:01:30]} 23. Bxe5 {[%clk 0:01:09]}  Bf6 {[%clk 0:01:06]} 24. Bxf6 {[%clk 0:01:03]}  gxf6 {[%clk 0:01:06]} 25. Rxd8+ {[%clk 0:01:02]}  Kxd8 {[%clk 0:01:07]} 26. Bd5 {[%clk 0:00:47]}  Re8 {[%clk 0:01:04]} 27. h3 {[%clk 0:00:41]}  Bd7 {[%clk 0:01:04]} 28. Kh2 {[%clk 0:00:38]}  b5 {[%clk 0:01:02]} 29. Bf3 {[%clk 0:00:38]}  Kc7 {[%clk 0:01:01]} 30. Nd5+ {[%clk 0:00:38]} 1-0


[Site "https://www.chess.com"]

[Event "Titled Tuesday Blitz March 22 Early 2022"]
[White "Mirzoev, Azer"]
[Black "Sanchez, Robert"]
[WhiteFideId "13400304"]
[BlackFideId "2034360"]
[WhiteElo "2525"]
[BlackElo "2254"]
[Result "1-0"]
[Round "08"]
[TimeControl "180+1"]
[Date "2022.03.22"]
[WhiteClock "0:01:04"]
[BlackClock "0:00:53"]

1. c4 {[%clk 0:03:00]}  e5 {[%clk 0:02:59]} 2. Nc3 {[%clk 0:02:59]}  Nc6 {[%clk 0:02:59]} 3. e3 {[%clk 0:02:58]}  Nf6 {[%clk 0:02:58]} 4. Nf3 {[%clk 0:02:57]}  d5 {[%clk 0:02:56]} 5. cxd5 {[%clk 0:02:53]}  Nxd5 {[%clk 0:02:56]} 6. Qc2 {[%clk 0:02:53]}  Ndb4 {[%clk 0:02:46]} 7. Qb1 {[%clk 0:02:52]}  Bg4 {[%clk 0:02:39]} 8. a3 {[%clk 0:02:51]}  Nd5 {[%clk 0:02:38]} 9. Be2 {[%clk 0:02:49]}  Nxc3 {[%clk 0:02:31]} 10. bxc3 {[%clk 0:02:49]}  Bd6 {[%clk 0:02:29]} 11. Qxb7 {[%clk 0:02:42]}  Na5 {[%clk 0:02:20]} 12. Qb5+ {[%clk 0:02:40]}  c6 {[%clk 0:02:21]} 13. Qa4 {[%clk 0:02:38]}  Bd7 {[%clk 0:02:08]} 14. O-O {[%clk 0:02:31]}  O-O {[%clk 0:02:01]} 15. Qc2 {[%clk 0:02:06]}  f5 {[%clk 0:01:57]} 16. d4 {[%clk 0:02:01]}  e4 {[%clk 0:01:56]} 17. Nd2 {[%clk 0:02:01]}  Rf6 {[%clk 0:01:49]} 18. g3 {[%clk 0:02:00]}  Rh6 {[%clk 0:01:49]} 19. a4 {[%clk 0:01:48]}  g5 {[%clk 0:01:42]} 20. Ba3 {[%clk 0:01:46]}  Bxa3 {[%clk 0:01:41]} 21. Rxa3 {[%clk 0:01:45]}  g4 {[%clk 0:01:40]} 22. Rb1 {[%clk 0:01:41]}  Be6 {[%clk 0:01:32]} 23. c4 {[%clk 0:01:34]}  Qe7 {[%clk 0:01:27]} 24. Ra2 {[%clk 0:01:28]}  Rf8 {[%clk 0:01:26]} 25. Nf1 {[%clk 0:01:26]}  Rh3 {[%clk 0:01:16]} 26. Rab2 {[%clk 0:01:23]}  Qg5 {[%clk 0:01:13]} 27. Rb8 {[%clk 0:01:20]}  h5 {[%clk 0:01:02]} 28. Rxf8+ {[%clk 0:01:15]}  Kxf8 {[%clk 0:01:03]} 29. Qc3 {[%clk 0:01:09]}  f4 {[%clk 0:00:54]} 30. exf4 {[%clk 0:01:08]}  Qf5 {[%clk 0:00:55]} 31. Rb8+ {[%clk 0:01:05]}  Kg7 {[%clk 0:00:53]} 32. d5+ {[%clk 0:01:04]} 1-0


[Site "https://www.chess.com"]

[Event "Titled Tuesday Blitz March 22 Early 2022"]
[White "Myshakov, Fyodor"]
[Black "Kanyamarala, Trisha"]
[WhiteFideId "14111284"]
[BlackFideId "45004722"]
[WhiteElo "2310"]
[BlackElo "2047"]
[Result "1-0"]
[Round "08"]
[TimeControl "180+1"]
[Date "2022.03.22"]
[WhiteClock "0:01:16"]
[BlackClock "0:00:02"]

1. c4 {[%clk 0:02:57]}  e5 {[%clk 0:02:56]} 2. Nc3 {[%clk 0:02:58]}  Nf6 {[%clk 0:02:55]} 3. Nf3 {[%clk 0:02:59]}  e4 {[%clk 0:02:53]} 4. Ng5 {[%clk 0:02:59]}  e3 {[%clk 0:02:29]} 5. dxe3 {[%clk 0:02:55]}  Bb4 {[%clk 0:02:27]} 6. Qc2 {[%clk 0:02:51]}  h6 {[%clk 0:02:26]} 7. Ne4 {[%clk 0:02:49]}  O-O {[%clk 0:02:23]} 8. Nxf6+ {[%clk 0:02:49]}  Qxf6 {[%clk 0:02:23]} 9. Bd2 {[%clk 0:02:49]}  c6 {[%clk 0:02:16]} 10. g3 {[%clk 0:02:47]}  d6 {[%clk 0:02:14]} 11. Bg2 {[%clk 0:02:47]}  Nd7 {[%clk 0:02:00]} 12. O-O {[%clk 0:02:45]}  a5 {[%clk 0:01:55]} 13. a3 {[%clk 0:02:42]}  Bc5 {[%clk 0:01:48]} 14. Ne4 {[%clk 0:02:42]}  Qe7 {[%clk 0:01:45]} 15. Nxc5 {[%clk 0:02:41]}  dxc5 {[%clk 0:01:43]} 16. Bc3 {[%clk 0:02:39]}  Ne5 {[%clk 0:01:43]} 17. b3 {[%clk 0:02:38]}  a4 {[%clk 0:01:42]} 18. b4 {[%clk 0:02:33]}  Qe6 {[%clk 0:01:12]} 19. bxc5 {[%clk 0:02:21]}  Qxc4 {[%clk 0:01:08]} 20. Qb2 {[%clk 0:02:16]}  f6 {[%clk 0:00:53]} 21. Bxe5 {[%clk 0:02:15]}  fxe5 {[%clk 0:00:53]} 22. Qxe5 {[%clk 0:02:16]}  Qxe2 {[%clk 0:00:50]} 23. Qe7 {[%clk 0:02:03]}  Rb8 {[%clk 0:00:42]} 24. Rab1 {[%clk 0:01:58]}  Bf5 {[%clk 0:00:34]} 25. Rxb7 {[%clk 0:01:55]}  Rxb7 {[%clk 0:00:30]} 26. Qxb7 {[%clk 0:01:56]}  Bd3 {[%clk 0:00:29]} 27. Qxc6 {[%clk 0:01:52]}  Qc2 {[%clk 0:00:20]} 28. Qd5+ {[%clk 0:01:45]}  Kh8 {[%clk 0:00:19]} 29. Qd6 {[%clk 0:01:35]}  Rf6 {[%clk 0:00:11]} 30. Qd8+ {[%clk 0:01:34]}  Kh7 {[%clk 0:00:11]} 31. Qe7 {[%clk 0:01:23]}  Kh8 {[%clk 0:00:06]} 32. c6 {[%clk 0:01:16]}  Bxf1 {[%clk 0:00:06]} 33. Qe8+ {[%clk 0:01:16]}  Kh7 {[%clk 0:00:02]} 34. Be4+ {[%clk 0:01:16]} 1-0


[Site "https://www.chess.com"]